bitfinex/quotes_SOLUSD_20251009
["timestamp","ask_amount","ask_price","bid_price","bid_amount"]
[1760023977512,0.2,220.56,220.53,0.67]
[1760023977700,0.2,220.56,220.54,0.67]
[1760023978320,0.2,220.56,220.52,4.53473607]
[1760023978529,3.9915944,220.55,220.52,4.53473607]
[1760023979019,3.9915944,220.55,220.51,32.78]
[1760023979815,3.9915944,220.55,220.51,37.31489633]
[1760023980010,3.9915944,220.53,220.49,32.78]
[1760023980220,3.9915944,220.53,220.49,33.45]
[1760023980534,4.73393107,220.56,220.49,33.45]
[1760023981226,0.2,220.56,220.5,4.53514739]
[1760023981628,0.2,220.56,220.51,0.67]
[1760023982335,0.2,220.56,220.5,15.87301587]
[1760023982525,0.2,220.56,220.52,0.67]
[1760023982722,0.2,220.56,220.53,0.67]
[1760023983024,0.2,220.56,220.54,0.67]
[1760023983227,0.2,220.56,220.5,15.87301587]
[1760023983435,0.2,220.56,220.51,0.67]
[1760023984543,0.2,220.56,220.5,15.87301587]
[1760023984843,5.95524426,220.54,220.51,32.74]
[1760023985058,5.95524426,220.54,220.51,33.41]
[1760023985548,5.95524426,220.54,220.51,114.31]
[1760023985848,5.95524426,220.54,220.51,86.10491566]
[1760023986227,5.95524426,220.54,220.51,85.43491566]
[1760023986418,5.95524426,220.55,220.51,86.10491566]
[1760023986841,5.95524426,220.55,220.51,85.43491566]
[1760023987040,5.95524426,220.55,220.51,86.10491566]
[1760023987344,0.2,220.56,220.53,4.53453044]
[1760023987551,0.2,220.56,220.54,32.72]
[1760023987754,0.2,220.56,220.54,33.39]
[1760023988063,0.2,220.56,220.55,0.67]
[1760023989542,0.2,220.56,220.55,5.20411924]
[1760023989760,0.2,220.56,220.55,37.94411924]
[1760023992655,0.2,220.56,220.55,37.92411924]
[1760023992869,0.2,220.56,220.55,118.82411924]
[1760023993064,0.2,220.56,220.55,37.92411924]
[1760023993267,0.2,220.56,220.55,48.80059445]
[1760023994968,0.2,220.56,220.55,16.08059445]
[1760023995150,0.2,220.56,220.55,48.78059445]
[1760023997371,0.2,220.56,220.55,5.20411924]
[1760023997579,0.2,220.56,220.55,32.7]
[1760023997907,7.96477448,220.56,220.49,32.7]
[1760023998169,2.53085654,220.51,220.49,32.7]
[1760023998350,2.53085654,220.52,220.49,32.7]
[1760023998549,0.7,220.55,220.49,32.7]
[1760023998776,2.53085654,220.53,220.49,32.7]
[1760023999165,3.23085654,220.55,220.5,32.7]
[1760023999477,2.53085654,220.52,220.5,32.7]
[1760024000076,3.23085654,220.51,220.49,32.7]
[1760024000373,3.23085654,220.51,220.47,4.5357645]
[1760024000554,0.7,220.54,220.47,5.2057645]
[1760024000746,2.53085654,220.51,220.48,32.7]
[1760024000952,2.53085654,220.51,220.49,32.7]
[1760024001151,3.23085654,220.51,220.49,32.7]
[1760024001378,3.23085654,220.51,220.48,32.7]
[1760024001558,2.53085654,220.51,220.48,32.7]
[1760024001976,2.53085654,220.51,220.48,37.23544471]
[1760024002377,2.53085654,220.51,220.48,4.53544471]
[1760024002696,2.53085654,220.51,220.48,37.23544471]
[1760024002874,0.7,220.53,220.48,4.53544471]
[1760024003073,2.53085654,220.51,220.48,85.43544471]
[1760024003275,2.53085654,220.5,220.48,80.9]
[1760024003581,0.7,220.53,220.48,80.9]
[1760024003771,2.53085654,220.5,220.48,80.9]
[1760024003973,2.53085654,220.54,220.49,0.67]
[1760024004271,21.0,220.56,220.5,33.37]
[1760024004475,5.5761809,220.55,220.5,114.27]
[1760024004671,3.04532436,220.54,220.5,114.27]
[1760024004871,2.53085654,220.55,220.5,114.27]
[1760024005095,3.04532524,220.54,220.5,114.27]
[1760024005296,2.53085654,220.55,220.51,0.67]
[1760024005474,3.04564639,220.54,220.51,0.67]
[1760024005673,2.53085654,220.55,220.51,0.67]
[1760024005865,3.04564615,220.54,220.51,0.67]
[1760024006071,0.7,220.54,220.5,118.13498289]
[1760024006267,2.53085654,220.54,220.5,118.13498289]
[1760024006494,0.2,220.56,220.51,0.67]
[1760024006696,0.2,220.56,220.52,33.37]
[1760024007296,0.2,220.56,220.53,0.67]
[1760024007475,0.2,220.56,220.54,33.37]
[1760024007978,0.2,220.56,220.54,32.7]
[1760024008185,0.2,220.56,220.54,37.23425726]
[1760024008391,0.2,220.56,220.54,32.7]
[1760024008591,3.23085654,220.55,220.48,0.67]
[1760024008796,2.53085654,220.54,220.49,32.7]
[1760024009107,2.73085654,220.56,220.5,0.67]
[1760024009873,0.2,220.56,220.5,0.67]
[1760024010078,0.2,220.56,220.51,4.53494172]
[1760024010382,0.2,220.56,220.52,33.37]
[1760024010788,0.2,220.56,220.53,0.67]
[1760024010995,0.2,220.56,220.54,0.67]
[1760024011177,0.2,220.56,220.52,32.7]
[1760024011178,0.2,220.56,220.55,33.37]
[1760024011375,0.2,220.56,220.53,0.67]
[1760024011578,3.43085654,220.56,220.54,32.7]
[1760024011774,0.9,220.56,220.54,32.7]
[1760024012086,0.2,220.56,220.54,37.23417062]
[1760024012688,3.23085654,220.55,220.34,55.35999999]
[1760024012932,2.53085654,220.5,220.44,32.7]
[1760024013206,2.53085654,220.5,220.44,33.37]
[1760024013705,2.53085654,220.49,220.45,33.37]
[1760024013890,2.53085654,220.5,220.46,5.20597024]
[1760024015700,2.53085654,220.5,220.47,32.7]
[1760024015884,2.53085654,220.5,220.47,37.23574904]
[1760024016080,2.53085654,220.48,220.4,0.67]
[1760024016287,0.7,220.49,220.36,0.67]
[1760024016288,2.53085654,220.42,220.36,0.67]
[1760024016605,2.53085654,220.41,220.37,32.7]
[1760024016825,2.53085654,220.42,220.38,0.67]
[1760024017702,2.53085654,220.43,220.38,4.53761684]
[1760024017915,2.53085654,220.43,220.39,0.67]
[1760024018227,3.77151533,220.52,220.4,0.67]
[1760024018537,0.2,220.56,220.41,64.83017513]
[1760024018700,0.2,220.56,220.42,0.67]
[1760024018903,0.2,220.56,220.47,10.87647521]
[1760024019101,0.2,220.56,220.48,33.37]
[1760024019534,0.2,220.56,220.49,0.67]
[1760024019716,0.2,220.56,220.5,15.87301587]
[1760024019921,0.2,220.56,220.51,0.67]
[1760024020122,0.2,220.56,220.52,33.37]
[1760024020325,0.2,220.56,220.52,29.37]
[1760024021305,0.2,220.56,220.53,0.67]
[1760024021523,0.2,220.56,220.54,0.67]
[1760024021736,0.2,220.56,220.55,4.53411924]
[1760024022225,0.2,220.56,220.55,5.20411924]
[1760024022426,0.2,220.56,220.52,40.7063801]
[1760024022727,0.2,220.56,220.53,16.53085656]
[1760024023127,1e-08,220.56,220.54,11.53647521]
[1760024023428,0.2,220.64,220.54,11.53647521]
[1760024023614,5.95493995,220.63,220.55,0.66]
[1760024023930,5.95493995,220.62,220.57,4.53370811]
[1760024024135,5.95493995,220.63,220.57,15.8679784]
[1760024024307,5.95493995,220.63,220.57,16.5279784]
[1760024025203,0.89,220.64,220.57,4.53370811]
[1760024025427,5.95493995,220.58,220.38,19.99999999]
[1760024025631,5.95493995,220.51,220.44,0.67]
[1760024025937,5.95493995,220.5,220.45,32.7]
[1760024026108,5.95493995,220.53,220.46,0.67]
[1760024026527,5.95493995,220.51,220.46,0.67]
[1760024027027,5.95493995,220.49,220.43,16.54805651]
[1760024027330,5.95493995,220.5,220.47,4.5357645]
[1760024027537,5.95493995,220.52,220.48,0.67]
[1760024027834,5.95493995,220.51,220.47,4.5357645]
[1760024028029,5.95493995,220.5,220.47,4.5357645]
[1760024028619,5.95493995,220.51,220.47,4.5357645]
[1760024028814,5.95493995,220.5,220.47,4.5357645]
[1760024029135,5.95493995,220.49,220.44,32.7]
[1760024029435,3.04205005,220.53,220.45,16.546616]
[1760024029627,5.95493995,220.51,220.45,16.546616]
[1760024029928,5.95493995,220.5,220.45,4.536176]
[1760024030109,5.95493995,220.49,220.45,4.536176]
[1760024030306,5.95493995,220.5,220.45,5.206176]
[1760024030504,5.95493995,220.51,220.45,5.206176]
[1760024031136,5.95493995,220.51,220.45,16.546616]
[1760024032017,5.95493995,220.52,220.45,16.546616]
[1760024033229,0.71,220.53,220.45,16.546616]
[1760024033230,5.95493995,220.51,220.45,16.546616]
[1760024033529,0.71,220.5,220.43,4.53658757]
[1760024033726,5.95493995,220.45,220.4,4.53720508]
[1760024033932,3.04192119,220.48,220.39,4.53740725]
[1760024034115,5.95493995,220.42,220.36,32.53802868]
[1760024034641,5.95493995,220.42,220.36,43.88310038]
[1760024035339,5.95493995,220.43,220.37,33.37]
[1760024035540,5.95493995,220.43,220.38,4.53761684]
[1760024035723,5.95493995,220.45,220.39,0.67]
[1760024036428,5.95493995,220.44,220.39,0.67]
[1760024036726,5.95493995,220.44,220.4,0.67]
[1760024036933,5.95493995,220.44,220.38,15.88165894]
[1760024037642,5.95493995,220.43,220.38,15.88165894]
[1760024037827,5.95493995,220.43,220.39,32.72]
[1760024038025,5.95493995,220.4,220.38,4.53761684]
[1760024038232,5.95493995,220.4,220.37,37.25772767]
[1760024038534,0.71,220.42,220.37,37.25772767]
[1760024038737,5.95493995,220.39,220.37,37.25772767]
[1760024038941,5.95493995,220.39,220.34,37.9282656]
[1760024039435,5.95493995,220.39,220.35,0.67]
[1760024039830,5.95493995,220.39,220.36,0.67]
[1760024040029,5.95493995,220.39,220.34,48.60436707]
[1760024040544,5.95493995,220.4,220.35,0.67]
[1760024040715,20.8,220.42,220.36,0.67]
[1760024040918,5.95493995,220.41,220.36,0.67]
[1760024041120,5.95493995,220.42,220.37,0.67]
[1760024041445,5.95493995,220.38,220.34,4.5382656]
[1760024041640,5.95493995,220.38,220.34,37.2582656]
[1760024041824,5.95493995,220.36,220.34,4.5382656]
[1760024042138,3.99897818,220.36,220.32,4.53885257]
[1760024042550,3.99897818,220.36,220.32,5.20885257]
[1760024043536,0.71,220.4,220.32,16.55598401]
[1760024043716,3.99897818,220.36,220.32,16.55598401]
[1760024043922,3.99897818,220.36,220.32,15.88598401]
[1760024044335,0.71,220.4,220.32,15.88598401]
[1760024044525,3.99897818,220.38,220.33,0.67]
[1760024045023,3.99897818,220.36,220.32,15.88598401]
[1760024045348,3.99897818,220.33,220.3,4.53912503]
[1760024045529,3.99897818,220.31,220.28,0.1]
[1760024045731,3.99897818,220.3,220.28,0.1]
[1760024045944,3.99897818,220.3,220.28,4.63961982]
[1760024046448,4.70897818,220.29,220.28,0.1]
[1760024049038,20.12492408,220.29,220.28,0.1]
[1760024049652,20.8,220.33,220.28,0.1]
[1760024049947,24.79897818,220.29,220.28,0.1]
[1760024051043,25.50897818,220.29,220.28,0.1]
[1760024051863,20.8,220.29,220.28,0.1]
[1760024052150,3.99897818,220.29,220.28,0.1]
[1760024052663,4.70897818,220.29,220.21,4.54111984]
[1760024052827,3.99897818,220.23,220.21,4.54111984]
[1760024053028,0.71,220.29,220.22,0.72]
[1760024053340,3.99897818,220.25,220.22,0.72]
[1760024053527,20.8,220.3,220.23,0.72]
[1760024053722,3.99897818,220.27,220.23,0.72]
[1760024053928,0.69,220.32,220.23,0.72]
[1760024053929,20.8,220.3,220.24,5.26050127]
[1760024054153,20.8,220.3,220.18,53.52]
[1760024054371,3.99897818,220.27,220.23,0.72]
[1760024054672,3.99897818,220.27,220.24,0.72]
[1760024054864,3.99897818,220.27,220.25,0.72]
[1760024055045,3.99897818,220.27,220.22,0.72]
[1760024055245,3.99897818,220.27,220.23,0.72]
[1760024055548,3.99897818,220.28,220.24,0.72]
[1760024055961,3.99897818,220.28,220.19,15.89536309]
[1760024056165,3.99897818,220.27,220.2,0.72]
[1760024057150,3.99897818,220.27,220.21,15.89391944]
[1760024057349,3.99897818,220.27,220.22,0.72]
[1760024057549,3.99897818,220.26,220.23,0.72]
[1760024058061,3.99897818,220.26,220.21,15.89391944]
[1760024058263,3.99897818,220.26,220.22,0.72]
[1760024058460,3.99897818,220.27,220.23,0.72]
[1760024058661,3.99897818,220.27,220.24,0.72]
[1760024059074,3.99897818,220.27,220.21,15.89391944]
[1760024059255,3.99897818,220.25,220.21,16.61391944]
[1760024059575,3.99897818,220.26,220.22,0.72]
[1760024059779,3.99897818,220.31,220.22,0.72]
[1760024060153,3.99897818,220.3,220.22,0.72]
[1760024061154,3.99897818,220.3,220.23,15.89247604]
[1760024061480,3.99897818,220.3,220.24,0.72]
[1760024062379,20.8,220.33,220.24,0.72]
[1760024062551,3.99897818,220.37,220.26,20.8]
[1760024062751,0.69,220.43,220.28,20.8]
[1760024063062,3.99897818,220.39,220.29,0.72]
[1760024063380,3.99897818,220.34,220.3,4.53926463]
[1760024063675,3.99897818,220.33,220.3,4.53926463]
[1760024063883,3.99897818,220.34,220.3,5.25926463]
[1760024064176,3.99897818,220.35,220.31,0.72]
[1760024064352,3.99897818,220.35,220.3,15.88742622]
[1760024064548,3.99897818,220.34,220.3,15.88742622]
[1760024065164,3.99897818,220.34,220.3,11.34816159]
[1760024065362,3.99897818,220.33,220.29,4.53947069]
[1760024065558,3.99897818,220.33,220.29,5.25947069]
[1760024065769,3.99897818,220.33,220.3,0.72]
[1760024066164,1.62459437,220.33,220.3,0.72]
[1760024066676,0.69,220.36,220.3,0.72]
[1760024066867,1.62459437,220.34,220.3,0.72]
[1760024067668,1.62459437,220.33,220.31,4.53905859]
[1760024067852,2.31459437,220.32,220.27,0.72]
[1760024068053,1.62459437,220.28,220.23,0.72]
[1760024068254,1.62459437,220.24,220.19,0.72]
[1760024068582,0.69,220.26,220.2,0.72]
[1760024068761,1.62459437,220.25,220.2,0.72]
[1760024069155,1.62459437,220.23,220.17,0.72]
[1760024070657,0.69,220.26,220.17,0.72]
[1760024070658,1.62459437,220.24,220.17,0.72]
[1760024071284,0.69,220.3,220.21,20.8]
[1760024071489,1.62459437,220.33,220.22,33.46]
[1760024071688,1.62459437,220.33,220.23,0.72]
[1760024071986,0.69,220.33,220.23,0.72]
[1760024072166,4.00020633,220.32,220.23,0.72]
[1760024072368,20.8,220.34,220.23,0.72]
[1760024072563,4.00020633,220.34,220.23,0.72]
[1760024072790,4.00020633,220.35,220.23,0.72]
[1760024073195,4.00020633,220.35,220.26,15.89031144]
[1760024073486,4.00020633,220.35,220.27,0.72]
[1760024073704,4.00020633,220.34,220.27,0.72]
[1760024074398,4.00020633,220.33,220.27,0.72]
[1760024074890,4.00020633,220.28,220.23,4.54070744]
[1760024075182,4.00020633,220.27,220.23,4.54070744]
[1760024075362,0.69,220.27,220.23,4.54070744]
[1760024075557,4.00020633,220.24,220.17,0.72]
[1760024075772,4.00020633,220.18,220.14,4.54256382]
[1760024076078,0.69,220.24,220.13,4.64272367]
[1760024076079,0.69,220.2,220.13,4.64272367]
[1760024076277,0.69,220.23,220.14,0.72]
[1760024076463,4.00020633,220.16,220.13,4.64272367]
[1760024076676,4.00020633,220.14,220.13,0.1]
[1760024077081,4.69020633,220.14,220.13,0.1]
[1760024078174,4.69020633,220.14,220.04,0.42]
[1760024078377,4.00020633,220.09,220.05,4.54442172]
[1760024078583,4.00020633,220.08,220.01,32.74]
[1760024078972,4.00020633,220.03,220.0,0.1]
[1760024079172,4.00020633,220.01,220.0,0.1]
[1760024079590,4.69020633,220.01,220.0,0.1]
[1760024079781,4.00020633,220.01,220.0,0.1]
[1760024079987,4.00020633,220.02,220.0,0.1]
[1760024080307,4.00020633,220.04,220.0,0.1]
[1760024080596,4.00020633,220.04,220.0,4.64541719]
[1760024081191,20.8,220.06,220.0,4.64541719]
[1760024081397,4.00020633,220.03,220.0,4.64541719]
[1760024081697,4.00020633,220.02,220.0,4.64541719]
[1760024082076,4.00020633,220.02,220.0,0.1]
[1760024082277,4.00020633,220.01,220.0,0.1]
[1760024082478,4.69020633,220.01,220.0,0.1]
[1760024082692,4.00020633,220.01,220.0,0.1]
[1760024084404,21.48,220.04,220.0,0.1]
[1760024084599,4.00020633,220.01,220.0,0.1]
[1760024085192,0.71,220.03,220.0,0.1]
[1760024085502,4.00020633,220.01,220.0,0.1]
[1760024085878,0.71,220.03,220.0,0.1]
[1760024086078,4.00020633,220.03,220.0,4.64531118]
[1760024087602,4.00020633,220.05,220.01,0.65]
[1760024087902,3.77479562,220.17,220.01,0.65]
[1760024087903,0.71,220.14,220.01,0.65]
[1760024088209,4.00020633,220.13,220.01,0.65]
[1760024089080,0.71,220.14,220.02,15.90764474]
[1760024089278,4.00020633,220.13,220.03,0.65]
[1760024089684,4.00020633,220.12,220.03,0.65]
[1760024090718,20.8,220.13,220.03,0.65]
[1760024090882,4.00020633,220.12,220.03,0.65]
[1760024091202,4.00020633,220.12,220.04,15.90619886]
[1760024091705,4.00020633,220.1,220.04,15.90619886]
[1760024092122,4.00020633,220.1,220.05,0.65]
[1760024092299,4.00020633,220.06,220.04,4.54462824]
[1760024092499,4.71020633,220.06,220.04,4.54462824]
[1760024092695,36.21926589,220.13,220.04,5.19462824]
[1760024092696,0.71,220.1,220.04,5.19462824]
[1760024092898,4.00020633,220.11,220.05,0.65]
[1760024093106,4.00020633,220.07,220.06,4.54421521]
[1760024093299,4.00020633,220.07,220.02,0.65]
[1760024093300,4.00020633,220.07,220.03,4.54483479]
[1760024093502,4.00020633,220.07,220.04,0.65]
[1760024093697,4.00020633,220.07,220.03,15.90692177]
[1760024093902,4.00020633,220.08,220.04,0.65]
[1760024094305,4.00020633,220.12,220.05,0.65]
[1760024094514,0.71,220.15,220.05,0.65]
[1760024094816,4.00020633,220.12,220.05,0.65]
[1760024095014,4.00020633,220.12,220.06,15.90475324]
[1760024095210,4.00020633,220.16,220.07,0.65]
[1760024095593,4.00020633,220.14,220.07,0.65]
[1760024096093,4.00020633,220.1,220.06,15.90475324]
[1760024096288,4.00020633,220.1,220.06,16.55475324]
[1760024096799,4.00020633,220.13,220.07,0.65]
[1760024097218,4.00020633,220.13,220.08,15.90330788]
[1760024097406,21.51,220.17,220.09,0.65]
[1760024097592,4.00020633,220.15,220.09,0.65]
[1760024098911,4.00020633,220.15,220.08,15.90330788]
[1760024099113,0.71,220.16,220.08,4.54380225]
[1760024099424,4.00020633,220.12,220.07,4.54400872]
[1760024099724,0.71,220.14,220.07,15.90403053]
[1760024099921,0.71,220.14,220.07,16.55403053]
[1760024100228,4.00020633,220.12,220.07,16.55403053]
[1760024100420,4.00020633,220.08,220.07,4.54400872]
[1760024100598,0.71,220.11,220.07,4.54400872]
[1760024100798,4.00020633,220.1,220.07,4.54400872]
[1760024101004,0.71,220.14,220.07,4.54400872]
[1760024101222,4.00020633,220.09,220.02,5.19504135]
[1760024101718,4.00020633,220.08,220.02,5.19504135]
[1760024102120,20.8,220.15,220.02,38.63285153]
[1760024102325,4.00020633,220.09,220.03,0.65]
[1760024102628,4.00020633,220.05,220.02,15.90764474]
[1760024102826,4.00020633,220.05,220.02,4.54504135]
[1760024103232,4.00020633,220.05,220.02,0.65]
[1760024103404,0.71,220.08,220.02,0.65]
[1760024103605,4.00020633,220.06,220.02,0.65]
[1760024103926,4.00020633,220.06,220.01,4.54524794]
[1760024104127,5.98392693,220.06,220.02,0.65]
[1760024104715,5.98392693,220.04,220.01,15.90836779]
[1760024105213,5.98392693,220.04,220.02,0.65]
[1760024105600,5.98392693,220.04,220.03,4.54483479]
[1760024105819,6.69392693,220.04,220.03,4.54483479]
[1760024106027,5.98392693,220.04,220.03,4.54483479]
[1760024106405,5.98392693,220.04,220.01,4.54505532]
[1760024106605,5.98392693,220.02,220.0,4.64535568]
[1760024106818,0.71,220.01,220.0,0.1]
[1760024107623,26.05524794,220.01,220.0,0.1]
[1760024107826,36.93172315,220.01,220.0,0.1]
[1760024108012,16.13172315,220.01,220.0,0.1]
[1760024109529,12.08647521,220.01,220.0,0.1]
[1760024109835,16.63172315,220.01,220.0,0.1]
[1760024111030,16.13172315,220.01,220.0,0.1]
[1760024111223,19.15446658,220.01,220.0,0.1]
[1760024112059,20.8,219.99,219.98,0.1]
[1760024112223,5.98392693,219.99,219.98,0.1]
[1760024112422,6.69392693,219.99,219.98,0.1]
[1760024113045,9.71836119,219.99,219.98,0.1]
[1760024113638,25.14049756,219.99,219.98,0.1]
[1760024113823,31.67647521,219.95,219.85,0.67]
[1760024114025,5.98392693,219.86,219.79,11.47428497]
[1760024114215,5.98392693,219.84,219.81,0.67]
[1760024114414,5.98392693,219.84,219.8,4.54958123]
[1760024114717,5.98392693,219.84,219.8,4.5495835]
[1760024115034,5.98392693,219.84,219.79,5.31978319]
[1760024115218,5.98392693,219.84,219.79,0.77]
[1760024115414,5.98392693,219.84,219.79,4.64977118]
[1760024115620,5.98392693,219.84,219.79,0.1]
[1760024115815,6.65392693,219.84,219.79,0.1]
[1760024116033,6.65392693,219.84,219.79,4.64979576]
[1760024116237,39.41392693,219.84,219.79,4.64979576]
[1760024116628,32.76,219.84,219.81,4.54935555]
[1760024116842,38.74392693,219.84,219.79,4.64975194]
[1760024118066,38.74392693,219.84,219.81,4.54926267]
[1760024118863,20.8,219.87,219.83,4.64896965]
[1760024119157,5.98392693,219.84,219.83,5.31896965]
[1760024120142,5.98392693,219.84,219.83,0.77]
[1760024120341,5.98392693,219.84,219.83,0.1]
[1760024121345,6.65392693,219.84,219.83,0.1]
[1760024121549,5.98392693,219.84,219.83,0.1]
[1760024122660,6.65392693,219.9,219.83,5.31894658]
[1760024122857,20.8,219.86,219.83,5.31894658]
[1760024123159,5.98392693,219.84,219.83,0.1]
[1760024123637,6.65392693,219.84,219.83,0.1]
[1760024123955,11.20268966,219.84,219.83,0.1]
[1760024125252,5.98392693,219.84,219.83,0.1]
[1760024125460,5.98392693,219.77,219.75,4.52047549]
[1760024126064,20.8,219.87,219.74,32.78]
[1760024126239,7.54582352,219.99,219.73,11.3774321]
[1760024126240,21.47,219.86,219.73,11.3774321]
[1760024126441,5.98392693,219.76,219.73,11.3774321]
[1760024127360,5.98392693,219.76,219.74,0.67]
[1760024127538,5.98392693,219.76,219.75,0.67]
[1760024127738,5.98392693,219.81,219.75,0.67]
[1760024127952,5.98392693,219.8,219.76,4.55041863]
[1760024128164,5.98392693,219.8,219.77,0.67]
[1760024128545,5.98392693,219.86,219.78,33.47]
[1760024128751,5.98392693,219.86,219.79,0.67]
[1760024129146,4.54690128,219.93,219.79,0.67]
[1760024129147,5.98392693,219.88,219.8,10.87647521]
[1760024129341,5.98392693,219.88,219.78,32.8]
[1760024129342,5.98392693,219.88,219.81,21.47]
[1760024129963,0.67,219.93,219.83,15.92139379]
[1760024129964,20.8,219.93,219.83,15.92139379]
[1760024130140,58.14478941,220.18,219.84,0.67]
[1760024130141,5.98392693,219.89,219.84,0.67]
[1760024130348,5.98392693,219.85,219.83,4.54896965]
[1760024130760,5.98392693,219.85,219.83,5.21896965]
[1760024130960,0.67,219.9,219.83,16.59139379]
[1760024131271,21.47,219.93,219.83,15.92139379]
[1760024131458,5.98392693,219.88,219.84,0.67]
[1760024131658,5.98392693,219.92,219.84,0.67]
[1760024131873,5.98392693,219.94,219.84,0.67]
[1760024132167,5.98392693,219.96,219.86,15.91922131]
[1760024132369,20.56,220.05,219.9,20.8]
[1760024132544,5.98392693,220.0,219.91,33.47]
[1760024132740,5.98392693,220.0,219.92,0.67]
[1760024132964,5.98392693,220.01,219.92,0.67]
[1760024133165,5.98392693,220.03,219.92,0.67]
[1760024133349,0.67,220.07,219.94,20.8]
[1760024133555,5.98392693,220.05,219.95,0.67]
[1760024133756,10.87647521,220.09,219.95,0.67]
[1760024134073,5.98392693,220.05,219.96,15.91198399]
[1760024134268,0.67,220.09,219.97,0.67]
[1760024134455,20.8,220.07,219.97,0.67]
[1760024134651,21.47,220.09,219.97,0.67]
[1760024134652,5.98392693,220.06,219.97,0.67]
[1760024135574,5.98392693,220.06,219.98,32.78]
[1760024135743,4.54265094,220.14,219.99,0.67]
[1760024135945,5.98392693,220.11,220.0,10.87647521]
[1760024136257,5.98392693,220.11,220.01,16.57836779]
[1760024136461,5.98392693,220.11,220.02,0.67]
[1760024136856,4.54259654,220.14,220.02,0.67]
[1760024137059,0.67,220.13,220.03,32.78]
[1760024137282,5.98392693,220.08,220.03,32.78]
[1760024137572,5.98392693,220.09,220.04,0.67]
[1760024137973,0.67,220.13,220.04,0.67]
[1760024138179,5.98392693,220.09,220.05,4.54442172]
[1760024138357,5.98392693,220.09,220.05,15.90547602]
[1760024138654,20.8,220.15,220.06,0.67]
[1760024138852,5.98392693,220.13,220.06,0.67]
[1760024139465,0.67,220.15,220.06,0.67]
[1760024139664,5.98392693,220.11,220.06,0.67]
[1760024140287,0.67,220.15,220.07,15.90403053]
[1760024140470,5.98392693,220.11,220.07,15.90403053]
[1760024140780,5.98392693,220.11,220.07,4.54400872]
[1760024140975,0.67,220.1,220.05,4.54423766]
[1760024141172,5.98392693,220.07,220.05,4.54423766]
[1760024141380,0.67,220.06,219.96,22.73103625]
[1760024141678,5.98392693,219.98,219.95,33.43]
[1760024141867,0.67,220.04,219.95,33.43]
[1760024142069,5.98392693,219.98,219.95,33.43]
[1760024142270,5.98392693,219.98,219.96,5.21628114]
[1760024142662,5.98392693,219.98,219.96,4.54628114]
[1760024143281,0.69,220.05,219.96,15.91198399]
[1760024143580,5.98392693,220.02,219.97,0.69]
[1760024143759,5.98392693,220.0,219.97,32.76]
[1760024143966,0.69,220.05,219.96,48.67198399]
[1760024144175,5.98392693,220.0,219.96,48.67198399]
[1760024144367,21.49,220.05,219.98,15.91053731]
[1760024144580,5.98392693,220.02,219.98,15.91053731]
[1760024144761,5.98392693,220.0,219.98,15.91053731]
[1760024145370,5.98392693,220.0,219.98,4.5458678]
[1760024145984,0.69,219.99,219.96,4.54611421]
[1760024146191,5.98392693,219.97,219.96,4.54611421]
[1760024146484,5.98392693,219.97,219.93,16.59415449]
[1760024146693,5.98392693,219.97,219.94,0.68]
[1760024146861,5.98392693,219.97,219.95,0.68]
[1760024147461,0.69,220.03,219.95,0.68]
[1760024147661,5.98392693,219.98,219.96,4.54628114]
[1760024147888,20.8,220.03,219.97,0.68]
[1760024148114,5.98392693,220.01,219.97,0.68]
[1760024148473,5.98392693,220.01,219.96,15.91198399]
[1760024148677,0.69,220.04,219.97,0.68]
[1760024148877,5.98392693,220.01,219.97,0.68]
[1760024149075,5.98392693,219.99,219.97,32.76]
[1760024149579,5.98392693,220.01,219.99,4.54566116]